[Event "FIDE World Rapid Chess Championship 2021"]
[White "Gumularz, Szymon"]
[Black "Vokhidov, Shamsiddin"]
[WhiteFideId "1188062"]
[BlackFideId "14204223"]
[WhiteElo "2452"]
[BlackElo "2546"]
[Result "1-0"]
[Round "09"]
[TimeControl "900+10"]
[Date "2021.12.27"]
[WhiteClock "0:04:47"]
[BlackClock "0:03:04"]

1. e4 {[%clk 0:15:00]}  c5 {[%clk 0:15:00]} 2. Nf3 {[%clk 0:15:00]}  d6 {[%clk 0:15:00]} 3. Bb5+ {[%clk 0:15:00]}  Nd7 {[%clk 0:15:00]} 4. a4 {[%clk 0:15:00]}  Nf6 {[%clk 0:15:00]} 5. Nc3 {[%clk 0:15:00]}  a6 {[%clk 0:15:00]} 6. Be2 {[%clk 0:15:00]}  g6 {[%clk 0:15:00]} 7. a5 {[%clk 0:15:00]}  Bg7 {[%clk 0:15:00]} 8. O-O {[%clk 0:15:00]}  O-O {[%clk 0:15:00]} 9. d3 {[%clk 0:16:07]}  b5 {[%clk 0:14:18]} 10. axb6 {[%clk 0:16:07]}  Bb7 {[%clk 0:14:18]} 11. Qd2 {[%clk 0:16:07]}  Nxb6 {[%clk 0:14:18]} 12. Qg5 {[%clk 0:16:07]}  c4 {[%clk 0:12:14]} 13. Qh4 {[%clk 0:16:07]}  cxd3 {[%clk 0:12:14]} 14. cxd3 {[%clk 0:16:07]}  h5 {[%clk 0:12:14]} 15. d4 {[%clk 0:16:07]}  Qd7 {[%clk 0:12:14]} 16. h3 {[%clk 0:16:07]}  Rfc8 {[%clk 0:12:14]} 17. Re1 {[%clk 0:15:54]}  a5 {[%clk 0:11:13]} 18. Bd1 {[%clk 0:14:53]}  Rc4 {[%clk 0:09:14]} 19. Qg3 {[%clk 0:11:59]}  Rxc3 {[%clk 0:09:14]} 20. bxc3 {[%clk 0:10:05]}  Nxe4 {[%clk 0:08:40]} 21. Qh4 {[%clk 0:10:05]}  Bf6 {[%clk 0:08:40]} 22. Ng5 {[%clk 0:10:05]}  Nxc3 {[%clk 0:08:19]} 23. Bxh5 {[%clk 0:10:05]}  gxh5 {[%clk 0:08:28]} 24. Qxh5 {[%clk 0:06:10]}  Bd5 {[%clk 0:08:28]} 25. Qh7+ {[%clk 0:06:10]}  Kf8 {[%clk 0:08:28]} 26. Ne4 {[%clk 0:06:10]}  Qe6 {[%clk 0:03:35]} 27. Bh6+ {[%clk 0:05:32]}  Ke8 {[%clk 0:03:35]} 28. Nxc3 {[%clk 0:05:32]}  Qc8 {[%clk 0:03:35]} 29. Nxd5 {[%clk 0:04:59]}  Nxd5 {[%clk 0:02:47]} 30. Rac1 {[%clk 0:04:59]}  Qb7 {[%clk 0:02:47]} 31. Qg8+ {[%clk 0:04:59]}  Kd7 {[%clk 0:02:47]} 32. Qxf7 {[%clk 0:04:59]}  a4 {[%clk 0:02:47]} 33. Qe6+ {[%clk 0:04:59]}  Kd8 {[%clk 0:02:47]} 34. Rb1 {[%clk 0:04:59]}  Qc6 {[%clk 0:02:47]} 35. Rec1 {[%clk 0:04:47]}  Nc7 {[%clk 0:03:04]} 36. Qg8+ {[%clk 0:04:47]}  Qe8 {[%clk 0:03:04]} 37. Qc4 {[%clk 0:04:47]}  Qd7 {[%clk 0:03:04]} 38. Rb7 {[%clk 0:04:47]} 1-0


[Site "http://www.Chess.com"]

[Event "FIDE World Rapid Chess Championship 2021"]
[White "Demidov, Mikhail"]
[Black "Teclaf, Pawel"]
[WhiteFideId "4197143"]
[BlackFideId "1185934"]
[WhiteElo "2544"]
[BlackElo "2345"]
[Result "1-0"]
[Round "09"]
[TimeControl "900+10"]
[Date "2021.12.27"]
[WhiteClock "0:03:08"]
[BlackClock "0:00:25"]

1. d4 {[%clk 0:15:00]}  d5 {[%clk 0:15:00]} 2. Nf3 {[%clk 0:15:00]}  Nf6 {[%clk 0:15:00]} 3. Bf4 {[%clk 0:15:00]}  e6 {[%clk 0:15:00]} 4. e3 {[%clk 0:15:00]}  Bd6 {[%clk 0:15:00]} 5. Bg3 {[%clk 0:15:00]}  O-O {[%clk 0:13:59]} 6. c4 {[%clk 0:15:08]}  c5 {[%clk 0:12:21]} 7. dxc5 {[%clk 0:15:08]}  Bxg3 {[%clk 0:12:21]} 8. hxg3 {[%clk 0:15:08]}  dxc4 {[%clk 0:12:21]} 9. Qxd8 {[%clk 0:15:08]}  Rxd8 {[%clk 0:12:21]} 10. Rh4 {[%clk 0:15:08]}  Bd7 {[%clk 0:12:21]} 11. Rxc4 {[%clk 0:14:30]}  Bc6 {[%clk 0:12:21]} 12. Nd4 {[%clk 0:14:19]}  Bd5 {[%clk 0:08:35]} 13. Rc1 {[%clk 0:14:19]}  Nbd7 {[%clk 0:08:35]} 14. Nd2 {[%clk 0:13:05]}  a5 {[%clk 0:07:44]} 15. c6 {[%clk 0:13:05]}  Ne5 {[%clk 0:06:36]} 16. c7 {[%clk 0:10:55]}  Rdc8 {[%clk 0:05:31]} 17. Bb5 {[%clk 0:10:55]}  Ne8 {[%clk 0:05:31]} 18. f4 {[%clk 0:08:38]}  Nc6 {[%clk 0:03:46]} 19. Bxc6 {[%clk 0:08:38]}  Bxc6 {[%clk 0:03:46]} 20. Nxc6 {[%clk 0:08:38]}  bxc6 {[%clk 0:03:46]} 21. Rxc6 {[%clk 0:08:38]}  Rxc7 {[%clk 0:03:46]} 22. Rac1 {[%clk 0:07:04]}  Rxc6 {[%clk 0:03:40]} 23. Rxc6 {[%clk 0:07:04]}  Nf6 {[%clk 0:03:40]} 24. Nc4 {[%clk 0:07:04]}  h5 {[%clk 0:03:40]} 25. Rc5 {[%clk 0:06:35]}  a4 {[%clk 0:02:36]} 26. Ra5 {[%clk 0:06:35]}  Rxa5 {[%clk 0:02:36]} 27. Nxa5 {[%clk 0:06:35]}  Ne4 {[%clk 0:02:36]} 28. Nc4 {[%clk 0:06:35]}  Nxg3 {[%clk 0:02:36]} 29. Nb6 {[%clk 0:06:35]}  a3 {[%clk 0:02:36]} 30. bxa3 {[%clk 0:06:35]}  Kf8 {[%clk 0:02:36]} 31. a4 {[%clk 0:06:35]}  Ne4 {[%clk 0:02:36]} 32. a5 {[%clk 0:05:08]}  Nc5 {[%clk 0:03:10]} 33. Kd2 {[%clk 0:05:08]}  Ke7 {[%clk 0:03:10]} 34. Kc3 {[%clk 0:05:08]}  Kd6 {[%clk 0:03:10]} 35. Nc4+ {[%clk 0:05:08]}  Kc7 {[%clk 0:03:10]} 36. Kb4 {[%clk 0:05:08]}  Ne4 {[%clk 0:01:57]} 37. Ne5 {[%clk 0:05:26]}  f6 {[%clk 0:01:57]} 38. Ng6 {[%clk 0:05:26]}  Nd6 {[%clk 0:01:57]} 39. Nf8 {[%clk 0:05:26]}  e5 {[%clk 0:00:45]} 40. Ne6+ {[%clk 0:04:16]}  Kc6 {[%clk 0:00:45]} 41. Nxg7 {[%clk 0:04:16]}  h4 {[%clk 0:00:45]} 42. fxe5 {[%clk 0:04:16]}  fxe5 {[%clk 0:00:45]} 43. a3 {[%clk 0:04:16]}  Kd5 {[%clk 0:00:45]} 44. a6 {[%clk 0:04:16]}  Kc6 {[%clk 0:00:45]} 45. a7 {[%clk 0:04:16]}  Kb7 {[%clk 0:00:45]} 46. Kc5 {[%clk 0:04:16]}  Nf7 {[%clk 0:00:25]} 47. Nf5 {[%clk 0:03:08]} 1-0


[Site "http://www.Chess.com"]

[Event "FIDE World Rapid Chess Championship 2021"]
[White "Bartel, Mateusz"]
[Black "Sankalp, Gupta"]
[WhiteFideId "1112635"]
[BlackFideId "5097010"]
[WhiteElo "2543"]
[BlackElo "2266"]
[Result "1/2-1/2"]
[Round "09"]
[TimeControl "900+10"]
[Date "2021.12.27"]
[WhiteClock "0:05:11"]
[BlackClock "0:00:59"]

1. e4 {[%clk 0:15:00]}  e5 {[%clk 0:15:00]} 2. Nf3 {[%clk 0:15:00]}  Nf6 {[%clk 0:15:00]} 3. Nxe5 {[%clk 0:15:00]}  d6 {[%clk 0:15:00]} 4. Nf3 {[%clk 0:15:00]}  Nxe4 {[%clk 0:15:00]} 5. Nc3 {[%clk 0:15:00]}  Nxc3 {[%clk 0:15:00]} 6. dxc3 {[%clk 0:15:00]}  Be7 {[%clk 0:15:00]} 7. Be3 {[%clk 0:15:00]}  O-O {[%clk 0:15:00]} 8. Qd2 {[%clk 0:15:00]}  Nd7 {[%clk 0:15:00]} 9. O-O-O {[%clk 0:15:00]}  Nf6 {[%clk 0:15:00]} 10. Bd3 {[%clk 0:15:00]}  Re8 {[%clk 0:15:00]} 11. h4 {[%clk 0:15:17]}  d5 {[%clk 0:15:41]} 12. Ng5 {[%clk 0:15:17]}  c5 {[%clk 0:15:41]} 13. c4 {[%clk 0:15:17]}  d4 {[%clk 0:14:08]} 14. Bf4 {[%clk 0:14:43]}  h6 {[%clk 0:14:08]} 15. Rde1 {[%clk 0:14:43]}  Bd7 {[%clk 0:14:08]} 16. Nf3 {[%clk 0:13:45]}  Qc8 {[%clk 0:11:33]} 17. Bxh6 {[%clk 0:13:45]}  Ng4 {[%clk 0:11:08]} 18. Bf4 {[%clk 0:09:45]}  b5 {[%clk 0:05:07]} 19. Ne5 {[%clk 0:09:45]}  Nxe5 {[%clk 0:05:07]} 20. Rxe5 {[%clk 0:09:45]}  Qa6 {[%clk 0:05:07]} 21. Rhe1 {[%clk 0:08:11]}  bxc4 {[%clk 0:00:51]} 22. Bxc4 {[%clk 0:06:32]}  Qxc4 {[%clk 0:00:51]} 23. b3 {[%clk 0:06:32]}  Qa6 {[%clk 0:00:51]} 24. Rxe7 {[%clk 0:06:32]}  Qxa2 {[%clk 0:00:51]} 25. Rxe8+ {[%clk 0:06:32]}  Bxe8 {[%clk 0:01:13]} 26. Qd3 {[%clk 0:05:48]}  Qa1+ {[%clk 0:01:13]} 27. Kd2 {[%clk 0:05:48]}  Qa5+ {[%clk 0:01:13]} 28. Kd1 {[%clk 0:05:48]}  Bb5 {[%clk 0:01:13]} 29. Qd2 {[%clk 0:05:48]}  Qa1+ {[%clk 0:01:13]} 30. Qc1 {[%clk 0:05:48]}  Qa6 {[%clk 0:01:13]} 31. Re5 {[%clk 0:05:48]}  Qg6 {[%clk 0:01:13]} 32. Kd2 {[%clk 0:05:48]}  Qxg2 {[%clk 0:01:13]} 33. Qe1 {[%clk 0:05:48]}  Qf3 {[%clk 0:00:59]} 34. Qe4 {[%clk 0:05:11]}  Qxf2+ {[%clk 0:00:59]} 35. Kc1 {[%clk 0:05:11]}  Bc6 {[%clk 0:00:59]} 36. Qf5 {[%clk 0:05:11]}  Re8 {[%clk 0:00:59]} 37. Rxe8+ {[%clk 0:05:11]}  Bxe8 {[%clk 0:00:59]} 38. Qe5 {[%clk 0:05:11]}  Bc6 {[%clk 0:00:59]} 39. Bd2 {[%clk 0:05:11]}  Qxh4 {[%clk 0:00:59]} 40. Qxc5 {[%clk 0:05:11]}  Qh1+ {[%clk 0:00:59]} 41. Kb2 {[%clk 0:05:11]}  Qe4 {[%clk 0:00:59]} 42. Qxa7 {[%clk 0:05:11]}  d3 {[%clk 0:00:59]} 43. Qb8+ {[%clk 0:05:11]}  Kh7 {[%clk 0:00:59]} 44. Qh2+ {[%clk 0:05:11]}  Kg8 {[%clk 0:00:59]} 45. Qb8+ {[%clk 0:05:11]}  Kh7 {[%clk 0:00:59]} 46. Qh2+ {[%clk 0:05:11]} 1/2-1/2


[Site "http://www.Chess.com"]

[Event "FIDE World Rapid Chess Championship 2021"]
[White "Vastrukhin, Oleg"]
[Black "Tari, Aryan"]
[WhiteFideId "4192770"]
[BlackFideId "1510045"]
[WhiteElo "2382"]
[BlackElo "2542"]
[Result "1/2-1/2"]
[Round "09"]
[TimeControl "900+10"]
[Date "2021.12.27"]
[WhiteClock "0:00:35"]
[BlackClock "0:01:16"]

1. Nf3 {[%clk 0:15:00]}  c5 {[%clk 0:15:00]} 2. g3 {[%clk 0:15:00]}  Nc6 {[%clk 0:15:00]} 3. Bg2 {[%clk 0:15:00]}  g6 {[%clk 0:15:00]} 4. O-O {[%clk 0:15:00]}  Bg7 {[%clk 0:15:00]} 5. c4 {[%clk 0:15:00]}  d6 {[%clk 0:15:00]} 6. Nc3 {[%clk 0:15:00]}  Bf5 {[%clk 0:15:00]} 7. d3 {[%clk 0:15:00]}  Qd7 {[%clk 0:15:00]} 8. Bd2 {[%clk 0:15:00]}  Bh3 {[%clk 0:15:00]} 9. a3 {[%clk 0:15:00]}  Bxg2 {[%clk 0:15:00]} 10. Kxg2 {[%clk 0:15:41]}  e6 {[%clk 0:15:00]} 11. b4 {[%clk 0:15:41]}  b6 {[%clk 0:12:21]} 12. b5 {[%clk 0:15:38]}  Na5 {[%clk 0:12:21]} 13. a4 {[%clk 0:15:38]}  Ne7 {[%clk 0:12:21]} 14. Ne4 {[%clk 0:13:48]}  f5 {[%clk 0:12:35]} 15. Neg5 {[%clk 0:13:48]}  h6 {[%clk 0:12:35]} 16. Nh3 {[%clk 0:13:48]}  Bxa1 {[%clk 0:12:35]} 17. Qxa1 {[%clk 0:12:25]}  e5 {[%clk 0:11:27]} 18. Bxa5 {[%clk 0:12:25]}  bxa5 {[%clk 0:11:27]} 19. Nf4 {[%clk 0:12:25]}  O-O {[%clk 0:11:27]} 20. Nd5 {[%clk 0:12:25]}  Nxd5 {[%clk 0:11:27]} 21. cxd5 {[%clk 0:12:25]}  a6 {[%clk 0:11:27]} 22. bxa6 {[%clk 0:12:41]}  Rfb8 {[%clk 0:10:25]} 23. Nd2 {[%clk 0:11:13]}  Qf7 {[%clk 0:09:15]} 24. e4 {[%clk 0:07:41]}  f4 {[%clk 0:09:14]} 25. Qd1 {[%clk 0:07:41]}  Rxa6 {[%clk 0:09:14]} 26. Qg4 {[%clk 0:07:41]}  Kg7 {[%clk 0:08:34]} 27. Nc4 {[%clk 0:06:37]}  h5 {[%clk 0:08:34]} 28. Qg5 {[%clk 0:06:37]}  f3+ {[%clk 0:06:49]} 29. Kh3 {[%clk 0:05:36]}  Qf6 {[%clk 0:06:49]} 30. Kh4 {[%clk 0:05:36]}  Rb3 {[%clk 0:06:49]} 31. h3 {[%clk 0:04:41]}  Ra7 {[%clk 0:05:42]} 32. Rd1 {[%clk 0:04:41]}  Ra8 {[%clk 0:04:26]} 33. g4 {[%clk 0:03:41]}  hxg4 {[%clk 0:04:26]} 34. Qxf6+ {[%clk 0:03:41]}  Kxf6 {[%clk 0:04:26]} 35. Kxg4 {[%clk 0:03:41]}  Rab8 {[%clk 0:04:26]} 36. Kxf3 {[%clk 0:03:05]}  R8b4 {[%clk 0:03:45]} 37. Nxa5 {[%clk 0:03:05]}  Ra3 {[%clk 0:03:45]} 38. Ke2 {[%clk 0:03:05]}  Ra2+ {[%clk 0:03:45]} 39. Ke3 {[%clk 0:03:05]}  Rbb2 {[%clk 0:03:45]} 40. Rf1 {[%clk 0:03:05]}  Rxa4 {[%clk 0:02:50]} 41. Nc4 {[%clk 0:02:08]}  Rb3 {[%clk 0:02:50]} 42. Rc1 {[%clk 0:02:08]}  g5 {[%clk 0:02:50]} 43. Nxd6 {[%clk 0:02:08]}  Rd4 {[%clk 0:02:50]} 44. Rxc5 {[%clk 0:02:08]}  Rdxd3+ {[%clk 0:02:50]} 45. Ke2 {[%clk 0:02:08]}  Rdc3 {[%clk 0:02:50]} 46. Rc6 {[%clk 0:01:46]}  Ke7 {[%clk 0:02:11]} 47. Nf5+ {[%clk 0:01:46]}  Kd7 {[%clk 0:02:11]} 48. Rxc3 {[%clk 0:00:18]}  Rxc3 {[%clk 0:00:21]} 49. h4 {[%clk 0:00:18]}  gxh4 {[%clk 0:00:21]} 50. Nxh4 {[%clk 0:00:18]}  Kd6 {[%clk 0:00:21]} 51. Nf5+ {[%clk 0:00:18]}  Kc5 {[%clk 0:00:21]} 52. f3 {[%clk 0:00:18]}  Rc2+ {[%clk 0:00:21]} 53. Ke3 {[%clk 0:00:18]}  Ra2 {[%clk 0:00:21]} 54. Ne7 {[%clk 0:00:18]}  Kd6 {[%clk 0:00:21]} 55. Nf5+ {[%clk 0:00:18]}  Kd7 {[%clk 0:00:21]} 56. Nh6 {[%clk 0:00:18]}  Ke7 {[%clk 0:00:21]} 57. Ng4 {[%clk 0:00:18]}  Kd6 {[%clk 0:00:21]} 58. Nf2 {[%clk 0:00:18]}  Ra3+ {[%clk 0:00:21]} 59. Ke2 {[%clk 0:00:18]}  Kc5 {[%clk 0:00:21]} 60. Ng4 {[%clk 0:00:18]}  Kd4 {[%clk 0:00:21]} 61. Kf2 {[%clk 0:00:18]}  Ra8 {[%clk 0:00:21]} 62. Nh6 {[%clk 0:00:18]}  Rf8 {[%clk 0:01:16]} 63. Nf5+ {[%clk 0:00:35]}  Kc5 {[%clk 0:01:16]} 64. f4 {[%clk 0:00:35]}  exf4 {[%clk 0:01:16]} 65. Kf3 {[%clk 0:00:35]}  Rd8 {[%clk 0:01:16]} 66. d6 {[%clk 0:00:35]}  Rxd6 {[%clk 0:01:16]} 67. Nxd6 {[%clk 0:00:35]}  Kxd6 {[%clk 0:01:16]} 1/2-1/2


[Site "http://www.Chess.com"]

[Event "FIDE World Rapid Chess Championship 2021"]
[White "Kosakowski, Jakub"]
[Black "Donchenko, Alexander"]
[WhiteFideId "1185080"]
[BlackFideId "24603295"]
[WhiteElo "2304"]
[BlackElo "2535"]
[Result "1-0"]
[Round "09"]
[TimeControl "900+10"]
[Date "2021.12.27"]
[WhiteClock "0:00:38"]
[BlackClock "0:02:24"]

1. e4 {[%clk 0:15:00]}  c6 {[%clk 0:15:00]} 2. d4 {[%clk 0:15:00]}  d5 {[%clk 0:15:00]} 3. Nc3 {[%clk 0:15:00]}  dxe4 {[%clk 0:15:00]} 4. Nxe4 {[%clk 0:15:00]}  Bf5 {[%clk 0:15:00]} 5. Ng3 {[%clk 0:15:00]}  Bg6 {[%clk 0:15:00]} 6. Nh3 {[%clk 0:15:00]}  Nf6 {[%clk 0:15:00]} 7. Nf4 {[%clk 0:15:00]}  e5 {[%clk 0:15:00]} 8. dxe5 {[%clk 0:15:00]}  Qa5+ {[%clk 0:15:00]} 9. c3 {[%clk 0:15:00]}  Qxe5+ {[%clk 0:15:00]} 10. Be2 {[%clk 0:15:00]}  Nbd7 {[%clk 0:14:58]} 11. O-O {[%clk 0:15:31]}  O-O-O {[%clk 0:14:58]} 12. Qa4 {[%clk 0:15:31]}  Bc5 {[%clk 0:14:58]} 13. Nd3 {[%clk 0:15:31]}  Bxd3 {[%clk 0:14:58]} 14. Bxd3 {[%clk 0:15:31]}  Nd5 {[%clk 0:14:58]} 15. Bd2 {[%clk 0:15:31]}  Bb6 {[%clk 0:12:53]} 16. Rae1 {[%clk 0:12:20]}  Qc7 {[%clk 0:11:21]} 17. Qh4 {[%clk 0:12:20]}  Ne5 {[%clk 0:10:54]} 18. Bf5+ {[%clk 0:10:48]}  Kb8 {[%clk 0:10:54]} 19. c4 {[%clk 0:08:54]}  Ne7 {[%clk 0:09:44]} 20. Rxe5 {[%clk 0:08:54]}  Nxf5 {[%clk 0:09:44]} 21. Rxf5 {[%clk 0:06:51]}  Rxd2 {[%clk 0:09:11]} 22. c5 {[%clk 0:06:51]}  Qd8 {[%clk 0:09:11]} 23. Qg4 {[%clk 0:06:51]}  g6 {[%clk 0:09:11]} 24. Rxf7 {[%clk 0:05:26]}  Bxc5 {[%clk 0:08:35]} 25. Ne4 {[%clk 0:05:26]}  Rd5 {[%clk 0:08:35]} 26. Nxc5 {[%clk 0:05:34]}  Rxc5 {[%clk 0:06:17]} 27. Rd1 {[%clk 0:05:34]}  Rd5 {[%clk 0:06:17]} 28. Rxd5 {[%clk 0:05:34]}  cxd5 {[%clk 0:06:17]} 29. h3 {[%clk 0:04:24]}  Qc8 {[%clk 0:05:42]} 30. Qd4 {[%clk 0:03:08]}  Rd8 {[%clk 0:04:39]} 31. Rxh7 {[%clk 0:01:50]}  a6 {[%clk 0:04:39]} 32. Rg7 {[%clk 0:01:50]}  Qe6 {[%clk 0:01:28]} 33. Qf4+ {[%clk 0:00:26]}  Ka8 {[%clk 0:01:28]} 34. Qc7 {[%clk 0:00:26]}  Rb8 {[%clk 0:01:28]} 35. Re7 {[%clk 0:00:26]}  Qf5 {[%clk 0:01:28]} 36. Qe5 {[%clk 0:00:26]}  Qb1+ {[%clk 0:01:28]} 37. Kh2 {[%clk 0:00:26]}  Qxa2 {[%clk 0:01:28]} 38. Rd7 {[%clk 0:00:26]}  Qc4 {[%clk 0:00:58]} 39. Rxd5 {[%clk 0:00:19]}  Rf8 {[%clk 0:00:58]} 40. Rd2 {[%clk 0:00:19]}  Qb4 {[%clk 0:00:58]} 41. Re2 {[%clk 0:00:19]}  Rf5 {[%clk 0:00:58]} 42. Qe8+ {[%clk 0:00:19]}  Ka7 {[%clk 0:00:58]} 43. Qxg6 {[%clk 0:00:19]}  Rb5 {[%clk 0:00:58]} 44. Qg3 {[%clk 0:00:19]}  Qc4 {[%clk 0:00:58]} 45. Qe3+ {[%clk 0:00:19]}  Ka8 {[%clk 0:00:58]} 46. Qe8+ {[%clk 0:01:03]}  Ka7 {[%clk 0:01:21]} 47. Qe3+ {[%clk 0:01:03]}  Ka8 {[%clk 0:01:21]} 48. Rd2 {[%clk 0:01:03]}  Qc7+ {[%clk 0:01:21]} 49. Qg3 {[%clk 0:01:03]}  Qb6 {[%clk 0:01:21]} 50. Rc2 {[%clk 0:01:03]}  Qe6 {[%clk 0:01:21]} 51. Qc3 {[%clk 0:01:03]}  Qd6+ {[%clk 0:01:21]} 52. Qg3 {[%clk 0:01:03]}  Qe6 {[%clk 0:01:21]} 53. Qc7 {[%clk 0:01:03]}  Qe4 {[%clk 0:01:21]} 54. Rd2 {[%clk 0:01:03]}  Ka7 {[%clk 0:01:21]} 55. Qc3 {[%clk 0:01:03]}  Qf4+ {[%clk 0:01:21]} 56. g3 {[%clk 0:01:03]}  Qf8 {[%clk 0:00:25]} 57. Qd4+ {[%clk 0:00:31]}  Rb6 {[%clk 0:00:25]} 58. Re2 {[%clk 0:00:31]}  Qh6 {[%clk 0:00:25]} 59. h4 {[%clk 0:00:31]}  Qc6 {[%clk 0:00:25]} 60. Re5 {[%clk 0:00:31]}  Ka8 {[%clk 0:00:25]} 61. Rc5 {[%clk 0:00:31]}  Qe6 {[%clk 0:00:25]} 62. Rc8+ {[%clk 0:00:31]}  Qxc8 {[%clk 0:00:25]} 63. Qxb6 {[%clk 0:00:31]}  Qf5 {[%clk 0:00:25]} 64. Qd8+ {[%clk 0:00:31]}  Ka7 {[%clk 0:00:25]} 65. Qd4+ {[%clk 0:00:31]}  Ka8 {[%clk 0:00:25]} 66. g4 {[%clk 0:00:31]}  Qe6 {[%clk 0:00:25]} 67. Qd8+ {[%clk 0:00:31]}  Ka7 {[%clk 0:00:25]} 68. Qd4+ {[%clk 0:00:31]}  b6 {[%clk 0:00:25]} 69. h5 {[%clk 0:00:31]}  a5 {[%clk 0:00:25]} 70. Kg3 {[%clk 0:00:31]}  Ka6 {[%clk 0:00:25]} 71. Qd3+ {[%clk 0:00:31]}  Ka7 {[%clk 0:00:25]} 72. Qd4 {[%clk 0:01:15]}  Ka6 {[%clk 0:01:04]} 73. g5 {[%clk 0:01:15]}  Qf5 {[%clk 0:01:04]} 74. Qe3 {[%clk 0:01:15]}  a4 {[%clk 0:01:04]} 75. Qf4 {[%clk 0:01:15]}  Qd3+ {[%clk 0:01:04]} 76. Kh4 {[%clk 0:01:15]}  b5 {[%clk 0:01:04]} 77. g6 {[%clk 0:01:15]}  Qd8+ {[%clk 0:01:04]} 78. Kg4 {[%clk 0:01:15]}  Qd7+ {[%clk 0:01:04]} 79. Kg5 {[%clk 0:01:15]}  Qd5+ {[%clk 0:01:04]} 80. Kh6 {[%clk 0:01:15]}  Qc6 {[%clk 0:01:04]} 81. Kh7 {[%clk 0:01:15]}  Qc2 {[%clk 0:01:04]} 82. Qf6+ {[%clk 0:01:15]}  Ka7 {[%clk 0:01:04]} 83. Kg8 {[%clk 0:00:55]}  b4 {[%clk 0:01:57]} 84. Qe7+ {[%clk 0:00:55]}  Ka6 {[%clk 0:01:57]} 85. Qxb4 {[%clk 0:00:55]}  Qc8+ {[%clk 0:01:57]} 86. Kh7 {[%clk 0:00:55]}  Qd7+ {[%clk 0:01:57]} 87. Kh6 {[%clk 0:00:55]}  Qc6 {[%clk 0:01:57]} 88. f4 {[%clk 0:00:55]}  Ka7 {[%clk 0:01:57]} 89. Qd4+ {[%clk 0:00:55]}  Ka8 {[%clk 0:01:57]} 90. f5 {[%clk 0:00:55]}  Qc1+ {[%clk 0:01:57]} 91. Kh7 {[%clk 0:00:55]}  Qg5 {[%clk 0:01:57]} 92. h6 {[%clk 0:00:55]}  Qxf5 {[%clk 0:01:57]} 93. Qxa4+ {[%clk 0:00:55]}  Kb7 {[%clk 0:01:57]} 94. Qb3+ {[%clk 0:00:55]}  Ka6 {[%clk 0:01:57]} 95. Qf7 {[%clk 0:01:04]}  Qc2 {[%clk 0:03:01]} 96. Kg7 {[%clk 0:01:04]}  Ka5 {[%clk 0:03:01]} 97. Qa7+ {[%clk 0:01:04]}  Kb4 {[%clk 0:03:01]} 98. Qb6+ {[%clk 0:01:04]}  Ka4 {[%clk 0:03:01]} 99. Qa6+ {[%clk 0:01:04]}  Kb4 {[%clk 0:03:01]} 100. Qb7+ {[%clk 0:01:04]}  Ka4 {[%clk 0:03:01]} 101. h7 {[%clk 0:01:04]}  Qc5 {[%clk 0:03:01]} 102. Qd7+ {[%clk 0:01:04]}  Ka5 {[%clk 0:03:01]} 103. h8=Q {[%clk 0:00:58]}  Qe5+ {[%clk 0:02:34]} 104. Kg8 {[%clk 0:00:58]}  Qb8+ {[%clk 0:02:34]} 105. Kh7 {[%clk 0:00:58]}  Qh2+ {[%clk 0:02:34]} 106. Kg8 {[%clk 0:00:58]}  Qb8+ {[%clk 0:02:34]} 107. Kf7 {[%clk 0:00:58]}  Qxh8 {[%clk 0:02:34]} 108. Qf5+ {[%clk 0:00:58]}  Ka4 {[%clk 0:02:34]} 109. g7 {[%clk 0:00:58]}  Qd8 {[%clk 0:02:34]} 110. Qe4+ {[%clk 0:00:58]}  Ka5 {[%clk 0:02:24]} 111. Qe5+ {[%clk 0:00:38]}  Ka4 {[%clk 0:02:24]} 112. Qe8+ {[%clk 0:00:38]} 1-0


[Site "http://www.Chess.com"]

[Event "FIDE World Rapid Chess Championship 2021"]
[White "Muradli, Mahammad"]
[Black "Gabuzyan, Hovhannes"]
[WhiteFideId "13409301"]
[BlackFideId "13303732"]
[WhiteElo "2285"]
[BlackElo "2535"]
[Result "1-0"]
[Round "09"]
[TimeControl "900+10"]
[Date "2021.12.27"]
[WhiteClock "0:03:56"]
[BlackClock "0:08:10"]

1. c4 {[%clk 0:15:00]}  c5 {[%clk 0:15:00]} 2. Nc3 {[%clk 0:15:00]}  g6 {[%clk 0:15:00]} 3. g3 {[%clk 0:15:00]}  Bg7 {[%clk 0:15:00]} 4. Bg2 {[%clk 0:15:00]}  Nc6 {[%clk 0:15:00]} 5. Nf3 {[%clk 0:15:00]}  d6 {[%clk 0:15:00]} 6. O-O {[%clk 0:15:00]}  e5 {[%clk 0:15:00]} 7. d3 {[%clk 0:15:00]}  Nge7 {[%clk 0:15:00]} 8. Ne1 {[%clk 0:15:00]}  Be6 {[%clk 0:15:00]} 9. Nd5 {[%clk 0:15:00]}  O-O {[%clk 0:15:00]} 10. Nc2 {[%clk 0:15:00]}  Qd7 {[%clk 0:15:00]} 11. Re1 {[%clk 0:14:07]}  Bh3 {[%clk 0:15:39]} 12. Bh1 {[%clk 0:14:07]}  Nxd5 {[%clk 0:15:39]} 13. Bxd5 {[%clk 0:14:07]}  Ne7 {[%clk 0:15:39]} 14. Bh1 {[%clk 0:14:07]}  f5 {[%clk 0:15:39]} 15. Bg5 {[%clk 0:14:07]}  Nc6 {[%clk 0:15:39]} 16. Bd2 {[%clk 0:14:07]}  f4 {[%clk 0:15:39]} 17. Rb1 {[%clk 0:14:07]}  Rf5 {[%clk 0:15:39]} 18. b4 {[%clk 0:14:07]}  Raf8 {[%clk 0:15:39]} 19. Bd5+ {[%clk 0:14:07]}  Kh8 {[%clk 0:15:39]} 20. f3 {[%clk 0:14:07]}  b6 {[%clk 0:15:39]} 21. Kf2 {[%clk 0:13:09]}  Rh5 {[%clk 0:15:42]} 22. Rh1 {[%clk 0:13:09]}  Nd4 {[%clk 0:15:42]} 23. Be4 {[%clk 0:11:55]}  Bh6 {[%clk 0:14:14]} 24. Nxd4 {[%clk 0:11:55]}  cxd4 {[%clk 0:14:14]} 25. b5 {[%clk 0:10:08]}  Qe7 {[%clk 0:13:35]} 26. Qc1 {[%clk 0:10:08]}  Qg5 {[%clk 0:12:58]} 27. Ke1 {[%clk 0:07:40]}  Bg2 {[%clk 0:12:58]} 28. Rg1 {[%clk 0:07:40]}  Rxh2 {[%clk 0:12:58]} 29. g4 {[%clk 0:07:40]}  Qh4+ {[%clk 0:12:45]} 30. Kd1 {[%clk 0:06:20]}  Qf2 {[%clk 0:12:45]} 31. Re1 {[%clk 0:05:29]}  Bg5 {[%clk 0:10:49]} 32. Kc2 {[%clk 0:05:29]}  Bh4 {[%clk 0:10:49]} 33. Qa3 {[%clk 0:05:29]}  Rd8 {[%clk 0:09:42]} 34. Qxa7 {[%clk 0:05:01]}  d5 {[%clk 0:09:42]} 35. Bxd5 {[%clk 0:05:01]}  Rxd5 {[%clk 0:09:42]} 36. cxd5 {[%clk 0:05:01]}  Bxf3 {[%clk 0:09:42]} 37. Qf7 {[%clk 0:03:56]}  h5 {[%clk 0:08:10]} 38. Rbc1 {[%clk 0:03:56]}  Bxd5 {[%clk 0:08:10]} 39. Qxd5 {[%clk 0:03:56]}  Qg2 {[%clk 0:08:10]} 40. Qxe5+ {[%clk 0:03:56]}  Kh7 {[%clk 0:08:10]} 41. gxh5 {[%clk 0:03:56]} 1-0


[Site "http://www.Chess.com"]